bitfinex-derivatives/quotes_ETHF0:USTF0_20250213
["timestamp","ask_amount","ask_price","bid_price","bid_amount"]
[1739471377138,0.75988,2631.6,2631.5,0.00569768]
[1739471377938,0.75986,2631.7,2631.5,0.00569768]
[1739471378133,3.2078,2631.8,2631.5,0.00569768]
[1739471378336,0.75988,2631.6,2631.5,0.00569768]
[1739471379340,0.82528236,2631.6,2631.5,0.00569768]
[1739471380740,0.82528167,2631.6,2631.5,0.00569768]
[1739471380940,0.75988,2631.6,2631.5,0.00569768]
[1739471381841,0.82528631,2631.6,2631.5,0.00569768]
[1739471382643,0.06540805,2631.6,2631.5,0.00569768]
[1739471382843,0.75988,2631.6,2631.5,0.00569768]
[1739471383037,0.06540768,2631.6,2631.5,0.00569768]
[1739471383244,3.2078,2631.8,2631.5,0.00569768]
[1739471383443,3.96765,2631.8,2631.5,0.00569768]
[1739471383644,3.96765,2631.8,2631.5,0.76560768]
[1739471383844,0.75987,2631.7,2631.5,0.00569768]
[1739471384144,3.2078,2631.8,2631.5,0.00569768]
[1739471384540,3.2078,2631.8,2631.7,0.75985]
[1739471384746,3.2078,2632.4,2631.7,6.61459026]
[1739471384942,3.2078,2632.4,2632.0,3.40679026]
[1739471385143,3.96746,2632.4,2632.0,3.40679026]
[1739471385441,3.2078,2632.7,2632.0,3.40679026]
[1739471385640,0.75966,2632.4,2631.9,0.75977]
[1739471386545,3.40679026,2632.6,2631.8,45.32721]
[1739471386745,0.06543304,2632.5,2631.8,44.5674]
[1739471386937,0.06543304,2632.5,2631.8,45.32721]
[1739471386938,0.75971,2632.3,2631.8,45.32721]
[1739471387138,0.75971,2632.3,2631.8,44.5674]
[1739471387341,3.2078,2632.4,2631.8,44.5674]
[1739471387746,0.75973,2632.2,2631.8,4.52722]
[1739471388045,0.75973,2632.2,2631.8,3.7674]
[1739471388245,3.2078,2632.4,2631.8,4.52722]
[1739471388445,0.75969,2632.3,2631.8,3.7674]
[1739471388645,0.75971,2632.2,2631.8,4.52721]
[1739471388954,0.75972,2632.2,2631.8,4.52721]
[1739471389248,0.7597,2632.3,2631.8,3.7674]
[1739471389449,3.2078,2632.4,2631.8,4.52721]
[1739471389743,0.75975,2632.1,2631.8,3.7674]
[1739471389948,0.75969,2632.3,2631.9,0.75978]
[1739471390648,3.2078,2632.4,2631.8,3.7674]
[1739471390946,0.75973,2632.2,2631.8,4.52721]
[1739471391847,0.7597,2632.3,2631.9,0.75978]
[1739471392039,0.7597,2632.3,2632.0,0.75976]
[1739471392235,0.75969,2632.3,2631.8,3.7674]
[1739471392441,0.75972,2632.2,2631.9,0.75979]
[1739471392642,0.75972,2632.2,2631.8,3.7674]
[1739471392841,3.2078,2632.4,2631.8,3.7674]
[1739471393045,3.2078,2632.4,2632.0,3.2078]
[1739471393350,3.2078,2632.4,2632.3,0.75968]
[1739471393845,3.2078,2632.4,2632.3,1.2435]
[1739471394244,3.96745,2632.4,2632.3,1.2435]
[1739471394440,3.2078,2632.4,2632.3,1.2435]
[1739471394746,3.2078,2632.4,2632.3,2.00318]
[1739471395344,3.2078,2632.4,2632.3,1.2435]
[1739471396142,3.96745,2632.4,2632.3,1.2435]
[1739471396549,3.2078,2632.4,2632.3,1.2435]
[1739471396850,3.96745,2632.4,2632.3,1.2435]
[1739471397155,0.47902491,2632.7,2632.3,1.2435]
[1739471397355,0.7596,2632.6,2632.4,2.4337]
[1739471397851,0.75958,2632.7,2632.4,3.19333]
[1739471398052,0.75962,2632.5,2632.4,2.4337]
[1739471398348,0.75962,2632.5,2632.3,1.2435]
[1739471398349,0.47883075,2632.7,2632.3,1.2435]
[1739471398555,1.89915,2632.4,2631.7,3.2078]
[1739471398850,3.2078,2632.1,2631.7,3.5834]
[1739471399050,5.10718,2632.1,2631.7,3.5834]
[1739471399248,0.75983,2631.8,2631.7,3.5834]
[1739471399442,0.75983,2631.8,2631.7,2.3613]
[1739471400052,0.47887736,2632.0,2631.7,2.3613]
[1739471400554,0.7598,2631.9,2631.7,2.3613]
[1739471400756,0.75983,2631.8,2631.7,2.3613]
[1739471400953,0.51652292,2632.0,2631.7,2.3613]
[1739471401247,3.96755,2632.1,2631.7,2.3613]
[1739471401455,1.2215,2632.3,2631.7,2.3613]
[1739471401758,0.2113,2632.7,2631.9,6.61459026]
[1739471401759,3.2078,2632.7,2631.9,6.61459026]
[1739471402056,3.2078,2632.7,2632.2,0.7597]
[1739471402057,0.75961,2632.6,2632.2,0.7597]
[1739471402356,3.96737,2632.7,2632.3,3.14167]
[1739471402649,3.2078,2632.7,2632.3,2.382]
[1739471402854,0.00569768,2632.8,2632.5,0.75961]
[1739471403150,0.00569768,2632.8,2632.6,1.1984]
[1739471403353,0.75957,2632.7,2632.6,1.1984]
[1739471404259,0.75961,2632.6,2632.3,2.382]
[1739471404449,0.75961,2632.6,2632.4,1.2474]
[1739471404752,3.21349768,2632.8,2632.4,1.2474]
[1739471404951,0.75962,2632.5,2632.4,1.2474]
[1739471405550,0.75965,2632.4,2632.3,2.382]
[1739471406653,3.2078,2632.5,2632.3,2.382]
[1739471406848,3.96744,2632.5,2632.3,2.382]
[1739471407352,0.75965,2632.4,2632.3,2.382]
[1739471407658,0.75971,2632.2,2632.1,1.2474]
[1739471407858,3.2078,2632.2,2631.8,1.2415]
[1739471408060,0.7598,2631.9,2631.8,1.2415]
[1739471408552,0.75983,2631.8,2631.7,1.2772]
[1739471409255,0.75983,2631.8,2631.5,1.24719768]
[1739471409256,0.75988,2631.6,2631.5,0.00569768]
[1739471409554,4.03310089,2631.6,2631.5,0.00569768]
[1739471410144,4.3454734,2631.6,2631.5,0.00569768]
[1739471410350,4.03310089,2631.6,2631.5,0.00569768]
[1739471410656,4.51222657,2631.6,2631.5,0.00569768]
[1739471410856,5.02889917,2631.6,2631.5,0.00569768]
[1739471412355,5.0288381,2631.6,2631.5,0.00569768]
[1739471412663,5.7608381,2631.6,2631.5,0.00569768]
[1739471413246,11.7608381,2631.6,2631.5,0.00569768]
[1739471413451,0.76016,2630.7,2630.5,2.4347]
[1739471413751,3.2078,2630.8,2630.5,2.4347]
[1739471414059,0.76017,2630.6,2630.5,2.4347]
[1739471414255,0.76017,2630.6,2630.5,1.1744]
[1739471415253,3.40679026,2630.7,2630.3,1.17109768]
[1739471415556,3.21349768,2630.8,2630.3,2.42179768]
[1739471415557,3.2078,2630.5,2630.3,2.42179768]
[1739471416061,0.76582768,2630.8,2630.5,0.76019]
[1739471416062,0.00569768,2630.8,2630.5,0.76019]
[1739471416355,0.00569768,2630.8,2630.3,5.82858794]
[1739471417156,0.76582768,2630.8,2630.4,0.76022]
[1739471417350,0.76582768,2630.8,2630.3,2.42179768]
[1739471417351,0.00569768,2630.8,2630.3,2.42179768]
[1739471417947,0.00569768,2630.8,2630.6,0.76016]
[1739471418154,0.00569768,2630.8,2630.7,0.76014]
[1739471418860,0.00569768,2630.8,2630.7,40.8]
[1739471419764,0.00569768,2630.8,2630.7,41.56014]
[1739471420666,3.2078,2631.7,2630.8,1.90026]
[1739471420855,0.75996,2631.4,2631.1,0.76001]
[1739471421052,3.2078,2631.7,2631.0,3.2078]
[1739471421252,3.2078,2632.0,2631.3,3.2078]
[1739471421657,0.75983,2631.8,2631.5,0.75991]
[1739471421859,0.76550768,2631.9,2631.6,2.5188]
[1739471422058,0.75983,2631.8,2631.6,2.5188]
[1739471422258,0.00569768,2631.9,2631.8,0.75983]
[1739471422457,0.75983,2631.8,2631.6,2.5188]
[1739471422666,0.00569768,2631.9,2631.6,2.5188]
[1739471422869,0.75985,2631.7,2631.6,2.5188]
[1739471423361,3.41248794,2631.9,2631.3,3.2078]
[1739471423563,3.2078,2631.6,2631.2,1.1593]
[1739471423756,3.2078,2631.3,2631.0,1.2423]
[1739471423957,0.76003,2631.1,2631.0,1.2423]
[1739471424963,0.76015,2630.7,2630.3,3.97374768]
[1739471425159,0.76015,2630.7,2630.4,2.4902]
[1739471425866,0.7601,2630.9,2630.4,2.4902]
[1739471426067,0.76013,2630.8,2630.4,3.25043]
[1739471426564,6.61459026,2631.0,2630.4,3.25043]
[1739471426767,0.76013,2630.8,2630.4,3.25043]
[1739471426962,6.61459026,2631.0,2630.4,3.25043]
[1739471427163,0.76012,2630.8,2630.4,3.25043]
[1739471427363,0.76011,2630.9,2630.4,3.25043]
[1739471427562,6.61459026,2631.0,2630.4,2.4902]
[1739471427764,3.2078,2631.0,2630.4,2.4902]
[1739471427965,3.2078,2631.0,2630.5,0.76019]
[1739471428160,6.61459026,2631.3,2630.4,2.4902]
[1739471428366,3.9421,2631.8,2630.9,6.61459026]
[1739471428569,0.06536759,2631.7,2631.1,5.10788]
[1739471428772,3.96763,2631.8,2631.4,0.75992]
[1739471428972,3.2078,2631.8,2631.2,3.40679026]
[1739471429159,0.75986,2631.7,2631.3,0.75995]
[1739471429770,3.2078,2631.8,2631.2,44.96679026]
[1739471430070,0.75992,2631.5,2631.2,44.20679026]
[1739471430273,0.75988,2631.7,2631.3,0.75996]
[1739471430661,0.75988,2631.7,2631.2,3.40679026]
[1739471430867,0.00569768,2631.9,2631.4,3.2078]
[1739471431067,0.00569768,2631.9,2631.8,0.75983]
[1739471431561,3.2078,2632.4,2631.8,0.75983]
[1739471431562,3.2078,2632.4,2631.8,7.49516955]
[1739471431958,0.7597,2632.3,2631.8,8.25496955]
[1739471432165,0.75972,2632.2,2631.8,8.25498955]
[1739471432665,3.96746,2632.4,2632.0,0.75975]
[1739471432870,0.00569768,2632.3,2631.9,0.75978]
[1739471433262,0.00569768,2632.3,2631.9,0.75977]
[1739471433466,0.00569768,2632.3,2631.9,0.7598]
[1739471433674,0.75971,2632.2,2631.8,8.25497955]
[1739471433979,0.76537768,2632.3,2631.9,0.75977]
[1739471434770,0.75972,2632.2,2631.9,0.7598]
[1739471435174,0.00569768,2632.3,2632.1,0.75973]
[1739471435370,0.00569768,2632.3,2632.2,3.2078]
[1739471435568,3.96735,2632.8,2632.5,0.75961]
[1739471435868,3.2078,2632.8,2632.6,2.5396]
[1739471436166,3.96735,2632.8,2632.6,2.5396]
[1739471436369,0.75949,2633.0,2632.7,0.75955]
[1739471436572,3.2078,2633.2,2632.6,2.5396]
[1739471436773,0.75957,2632.7,2632.6,2.5396]
[1739471437977,1.89885,2632.8,2632.0,3.2078]
[1739471438273,0.75968,2632.3,2632.2,1.2523]
[1739471438671,0.75968,2632.3,2631.8,2.3484]
[1739471438672,7.23751445,2632.3,2631.8,2.3484]
[1739471438979,3.2078,2632.0,2631.7,0.00569768]
[1739471439169,3.2078,2632.0,2630.7,1.90035]
[1739471439170,3.96426955,2631.8,2630.4,3.2078]
[1739471439370,3.2078,2631.4,2630.7,1.2523]
[1739471439876,3.68520476,2631.7,2631.0,3.2078]
[1739471440076,0.47740476,2631.7,2631.4,3.2078]
[1739471440271,0.75984,2631.8,2631.5,1.2523]
[1739471440474,0.76554768,2631.8,2631.5,1.2523]
[1739471440673,0.75988,2631.7,2631.3,0.00569768]
[1739471440874,3.96768,2631.7,2631.3,0.00569768]
[1739471441179,3.96774,2631.4,2631.3,0.00569768]
[1739471441576,4.03314182,2631.4,2631.3,0.00569768]
[1739471443277,4.03312826,2631.4,2631.3,0.00569768]
[1739471443477,4.51042326,2631.4,2631.3,0.00569768]
[1739471443982,9.75048326,2631.4,2630.4,1.2059]
[1739471444181,3.2078,2630.8,2630.4,1.2059]
[1739471444683,0.76019,2630.6,2630.4,1.2059]
[1739471444979,3.968,2630.5,2630.4,1.2059]
[1739471445184,3.2078,2630.8,2630.4,1.2059]
[1739471445971,0.76019,2630.6,2630.4,1.2059]
[1739471446174,0.76016,2630.7,2630.4,1.2059]
[1739471446575,3.2078,2630.8,2630.4,1.2059]
[1739471446785,0.7602,2630.6,2630.4,1.2059]
[1739471447082,3.2078,2630.8,2630.4,1.2059]
[1739471447278,0.76015,2630.7,2630.4,1.2059]
[1739471447684,3.2078,2630.8,2630.4,1.2059]
[1739471448087,3.2078,2630.8,2630.4,1.9661]
[1739471448286,3.96784,2631.1,2630.4,1.2059]
[1739471448486,3.96784,2631.1,2630.6,0.76016]
[1739471448683,3.2078,2631.1,2630.4,1.2059]
[1739471448880,0.76007,2631.0,2630.6,0.76017]
[1739471449083,3.96784,2631.1,2630.6,0.76017]
[1739471449390,3.2078,2631.1,2630.4,1.2059]
[1739471449580,0.06539091,2631.0,2630.4,1.2059]
[1739471449887,0.76018,2630.6,2630.4,1.2059]
[1739471450083,0.7602,2630.5,2630.4,1.2059]
[1739471450279,3.2078,2630.8,2630.4,1.2059]
[1739471450583,3.96793,2630.8,2630.4,1.96612]
[1739471450985,3.2078,2631.1,2630.4,1.2059]
[1739471451175,0.7602,2630.5,2630.4,1.2059]
[1739471451683,0.7602,2630.5,2630.2,1.17429768]
[1739471451684,0.76026,2630.3,2630.2,1.17429768]
[1739471451886,0.76026,2630.3,2630.2,0.00569768]
[1739471453081,0.8256016,2630.3,2630.2,0.00569768]
[1739471453385,4.78987115,2630.3,2630.2,0.00569768]
[1739471453887,4.78986335,2630.3,2630.2,0.00569768]
[1739471454285,0.8255938,2630.3,2630.2,0.00569768]
[1739471455083,4.78986335,2630.3,2630.2,0.00569768]
[1739471456074,0.8255938,2630.3,2630.2,0.00569768]
[1739471456378,0.82556248,2630.3,2630.2,0.00569768]
[1739471456984,4.78983203,2630.3,2630.2,0.00569768]
[1739471457487,4.78982211,2630.3,2630.2,0.00569768]
[1739471457680,0.82555256,2630.3,2630.2,0.00569768]
[1739471458088,0.76026,2630.3,2630.2,0.00569768]
[1739471458782,3.2078,2630.5,2630.2,0.00569768]
[1739471459087,0.76013,2630.8,2630.4,0.76022]
[1739471459291,0.06529719,2630.7,2630.4,0.76022]
[1739471459582,8.39396955,2630.9,2630.2,0.00569768]
[1739471459779,8.39396955,2630.9,2630.4,0.76021]
[1739471459780,0.82543432,2630.8,2630.4,0.76021]
[1739471459982,0.76017,2630.6,2630.5,1.1562]
[1739471460577,0.76022,2630.5,2630.2,0.00569768]
[1739471460783,3.2078,2630.6,2630.2,1.16189768]
[1739471460985,8.39396955,2630.9,2630.2,1.16189768]
[1739471461190,0.76022,2630.5,2630.2,1.16189768]
[1739471461488,0.76026,2630.3,2630.2,1.16189768]
[1739471462084,3.96806,2630.3,2630.2,0.00569768]
[1739471462392,4.03337293,2630.3,2630.2,0.00569768]
[1739471462592,0.76022,2630.5,2630.2,0.00569768]
[1739471462788,3.96798,2630.6,2630.2,3.21326768]
[1739471462989,3.2078,2630.6,2630.3,1.2753]
[1739471463191,0.76021,2630.5,2630.3,1.2753]
[1739471463392,0.76023,2630.4,2630.3,1.2753]
[1739471464090,3.2078,2630.6,2630.3,1.2753]
[1739471464286,3.2078,2630.6,2630.3,2.03555]
[1739471464590,3.96798,2630.6,2630.3,2.03555]
[1739471465295,3.2078,2630.9,2630.3,1.2753]
[1739471465585,0.76018,2630.6,2630.3,5.24334]
[1739471465787,3.2078,2630.9,2630.3,4.4831]
[1739471466189,3.2078,2631.2,2630.6,3.2078]
[1739471466390,3.96783,2631.2,2630.8,0.7601]
[1739471466592,3.2078,2631.2,2630.9,2.5415]
[1739471466791,3.2078,2631.2,2631.0,1.266]
[1739471466792,3.9678,2631.2,2631.0,1.266]
[1739471467184,3.2078,2631.2,2631.0,1.266]
[1739471467384,3.96782,2631.2,2631.0,1.266]
[1739471467587,0.76003,2631.1,2631.0,1.266]
[1739471467989,3.2078,2631.2,2630.9,2.5415]
[1739471468188,0.76006,2631.0,2630.9,1.2635]
[1739471468398,0.76026,2630.4,2629.9,3.96816]
[1739471468696,3.2078,2630.6,2630.1,1.2249]
[1739471469087,0.76023,2630.4,2630.1,1.2249]
[1739471469395,2.04009,2630.9,2630.1,1.2249]
[1739471469396,3.96806,2630.3,2630.1,1.2249]
[1739471470092,0.76026,2630.3,2630.1,1.2249]
[1739471470683,3.2078,2630.6,2630.1,1.2249]
[1739471470889,0.76014,2630.8,2630.4,0.76022]
[1739471471503,0.76015,2630.7,2630.3,0.76023]
[1739471471791,5.108,2631.0,2630.2,1.19099768]
[1739471472088,0.06531916,2630.9,2630.2,1.19099768]
[1739471472287,0.76013,2630.8,2630.5,0.76019]
[1739471472592,0.76014,2630.7,2630.6,1.2484]
[1739471472787,0.76014,2630.8,2630.6,1.2484]
[1739471472990,3.2078,2631.0,2630.6,1.2484]
[1739471473188,3.2078,2631.0,2630.7,1.2364]
[1739471473397,3.2078,2631.3,2630.7,1.2364]
[1739471473689,0.76004,2631.1,2630.8,1.2481]
[1739471473994,0.76009,2630.9,2630.8,1.2481]
[1739471474895,3.2078,2631.3,2630.8,1.2481]
[1739471475392,0.76011,2630.8,2630.7,1.2364]
[1739471476383,3.2078,2631.0,2630.7,1.2364]
[1739471476689,0.76011,2630.8,2630.7,1.2364]
[1739471477298,3.2078,2631.0,2630.7,1.2364]
[1739471477692,0.76003,2631.1,2630.7,1.2364]
[1739471477885,3.2078,2631.1,2630.7,1.2364]
[1739471478090,0.76011,2630.8,2630.7,1.2364]
[1739471479398,3.96791,2630.8,2630.7,1.2364]
[1739471479696,3.2078,2630.8,2630.6,1.2484]
[1739471479897,0.76014,2630.7,2630.6,1.2484]
[1739471481498,0.76014,2630.7,2630.3,1.2611]
[1739471481499,0.76023,2630.4,2630.3,1.2611]
[1739471481697,0.76026,2630.3,2630.2,0.00569768]
[1739471481991,0.82558713,2630.3,2630.2,0.00569768]
[1739471482196,2.5819362,2630.3,2630.2,0.00569768]
[1739471482600,3.06076673,2630.3,2630.2,0.00569768]
[1739471482794,2.54441766,2630.3,2630.2,0.00569768]
[1739471483196,2.54441474,2630.3,2630.2,0.00569768]
[1739471483390,8.30039589,2630.3,2629.5,2.478]
[1739471483697,3.2078,2629.7,2629.0,1.2152]
[1739471483902,5.86969106,2629.9,2629.1,1.2023]
[1739471483903,0.76059,2629.2,2629.1,1.2023]
[1739471484100,3.96874106,2629.3,2628.7,3.2078]
[1739471484401,3.2078,2629.0,2628.5,40.8]
[1739471484594,3.96846,2629.0,2628.7,0.00569768]
[1739471484804,3.2078,2629.0,2628.7,0.00569768]
[1739471485100,3.2078,2629.0,2628.7,0.76640768]
[1739471485393,3.96844,2629.0,2628.7,0.00569768]
[1739471485988,3.2078,2629.0,2628.7,0.00569768]
[1739471486194,7.18223874,2629.3,2628.7,0.00569768]
[1739471486507,0.76058,2629.2,2628.7,0.00569768]
[1739471486994,0.76062,2629.1,2628.7,0.00569768]
[1739471487194,3.2078,2629.0,2628.7,0.00569768]
[1739471487702,3.96844,2629.0,2628.7,0.00569768]
[1739471489100,3.96845,2629.0,2628.7,0.00569768]
[1739471489401,0.76068,2628.9,2628.7,0.00569768]
[1739471489799,3.2078,2629.0,2628.7,0.00569768]
[1739471490301,3.96845,2629.0,2628.7,0.00569768]
[1739471490505,3.2078,2629.0,2628.7,0.00569768]
[1739471490802,0.76067,2628.9,2628.7,0.00569768]
[1739471491003,3.96844,2629.0,2628.7,0.00569768]
[1739471491299,0.76067,2628.9,2628.7,0.00569768]
[1739471491498,3.2078,2629.0,2628.7,0.00569768]
[1739471491701,0.00569768,2629.3,2628.7,0.00569768]
[1739471491702,3.21349768,2629.3,2628.7,3.21349768]
[1739471491899,0.00569768,2629.3,2628.8,1.1667]
[1739471492095,0.00569768,2629.3,2629.2,0.76058]
[1739471492300,0.00569768,2629.3,2629.0,3.2078]
[1739471492503,0.76624768,2629.3,2629.1,1.2385]
[1739471492994,0.00569768,2629.3,2629.2,0.76058]
[1739471493797,3.2078,2629.9,2629.2,0.76058]
[1739471494012,0.7604,2629.8,2629.5,0.76047]
[1739471494305,3.2078,2629.9,2629.6,1.1915]
[1739471494503,3.96819,2629.9,2629.6,1.1915]
[1739471494704,3.96874106,2630.2,2629.6,1.1915]
[1739471494705,7.17654106,2630.2,2629.6,1.1915]
[1739471494895,7.17654106,2630.2,2629.6,1.95194]
[1739471494896,0.76035,2630.0,2629.6,1.95194]
[1739471495605,3.21349768,2630.2,2629.6,1.1915]
[1739471495801,0.76033,2630.1,2629.7,0.76042]
[1739471496208,3.21349768,2630.2,2629.7,0.76042]
[1739471496503,3.21349768,2630.2,2629.6,1.1915]
[1739471496903,3.21349768,2630.2,2629.7,0.76042]
[1739471497103,0.76035,2630.0,2629.8,1.2766]
[1739471497503,3.21349768,2630.2,2629.8,1.2766]
[1739471497910,0.76032,2630.1,2629.8,1.2766]
[1739471498902,3.21349768,2630.2,2629.8,1.2766]
[1739471499101,3.97379768,2630.2,2629.9,0.76037]
[1739471499604,3.97379768,2630.2,2629.8,1.2766]
[1739471499605,3.21349768,2630.2,2629.8,1.2766]
[1739471499812,0.00569768,2630.2,2630.1,0.76032]
[1739471500109,0.00569768,2630.2,2630.0,0.76034]
[1739471500303,0.00569768,2630.2,2629.8,8.45314106]
[1739471500502,0.00569768,2630.2,2630.0,0.76033]
[1739471500909,0.76033,2630.1,2629.8,9.21352106]
[1739471501107,0.76033,2630.1,2629.9,0.76037]
[1739471501410,0.76033,2630.1,2629.9,41.56037]
[1739471501707,0.76600768,2630.2,2629.9,41.56035]
[1739471501908,0.76600768,2630.2,2629.9,0.76035]
[1739471502110,0.76600768,2630.2,2629.9,0.76037]
[1739471502311,0.76034,2630.1,2629.8,4.4844]
[1739471502508,0.76037,2629.9,2629.8,1.2766]
[1739471502713,0.76033,2630.1,2629.8,1.2766]
[1739471502910,0.76033,2630.1,2629.9,0.76036]
[1739471503109,0.76037,2629.9,2629.8,1.2766]
[1739471503506,0.00569768,2630.2,2629.8,1.2766]
[1739471504108,0.76037,2629.9,2629.8,1.2766]
[1739471504512,0.00569768,2630.2,2629.8,1.2766]
[1739471504909,0.76036,2630.0,2629.8,2.037]
[1739471505615,0.00569768,2630.2,2630.1,0.76032]
[1739471505919,0.00569768,2630.2,2630.0,3.2078]
[1739471506107,0.76599768,2630.2,2629.8,1.2766]
[1739471506419,0.76037,2629.9,2629.8,1.2766]
[1739471506609,3.21349768,2630.2,2629.8,1.2766]
[1739471507001,0.76037,2629.9,2629.8,1.2766]
[1739471508313,3.21349768,2630.2,2629.8,1.2766]
[1739471508502,3.21349768,2630.2,2629.9,0.76037]
[1739471508709,0.00569768,2630.2,2630.1,0.76032]
[1739471510411,0.00569768,2630.2,2630.1,3.96812]
[1739471510617,3.2078,2631.5,2630.1,12.62061426]
[1739471510814,3.2078,2631.5,2630.0,3.41281426]
[1739471510815,0.06537328,2631.4,2630.8,6.62061426]
[1739471511018,0.06537328,2631.4,2630.9,2.3729]
[1739471511219,0.76001,2631.2,2630.9,3.13297]
[1739471511523,4.3955,2631.5,2630.9,2.3729]
[1739471511711,0.76569768,2631.3,2630.9,3.13297]
[1739471511911,0.76005,2631.1,2630.9,2.3729]
[1739471512111,0.00569768,2631.3,2630.9,2.3729]
[1739471512312,0.76006,2631.0,2630.9,2.3729]
[1739471512609,0.00569768,2631.3,2630.9,2.3729]
[1739471512809,0.76,2631.2,2630.9,3.13298]
[1739471513010,0.76,2631.2,2630.9,2.3729]
[1739471513319,0.76003,2631.1,2630.9,2.3729]
[1739471513505,0.76002,2631.2,2630.9,2.3729]
[1739471513915,0.76001,2631.2,2630.9,3.13298]
[1739471514119,0.76001,2631.2,2630.9,2.3729]
[1739471514319,0.00569768,2631.3,2630.9,2.3729]
[1739471515021,0.00569768,2631.3,2631.0,0.76004]
[1739471515515,0.00569768,2631.3,2631.1,0.76002]
[1739471515718,0.00569768,2631.3,2631.2,0.76]
[1739471515919,0.00569768,2631.3,2631.1,3.2078]
[1739471516211,0.00569768,2631.3,2631.2,0.76]
[1739471516415,0.00569768,2631.3,2631.1,3.96781]
[1739471516610,0.00569768,2631.3,2631.2,0.76]
[1739471517211,0.7428,2632.3,2631.8,0.75981]
[1739471517410,0.75974,2632.1,2631.9,0.75978]
[1739471517614,1.1572,2632.2,2631.7,1.2021]
[1739471518011,0.75982,2631.8,2631.7,1.2021]
[1739471518517,1.1572,2632.2,2631.7,1.2021]
[1739471519115,0.75981,2631.9,2631.7,1.2021]
[1739471520125,0.75981,2631.9,2631.7,1.96195]
[1739471520418,1.1572,2632.2,2631.7,1.2021]
[1739471520922,1.91693,2632.2,2631.9,0.75978]
[1739471521125,1.91693,2632.2,2631.7,1.2021]
[1739471521126,0.75981,2631.9,2631.7,1.2021]
[1739471521415,0.75983,2631.8,2631.7,1.2021]
[1739471521621,1.1572,2632.2,2631.7,1.2021]
[1739471521818,0.75969,2632.3,2632.0,0.75974]
[1739471522020,0.75969,2632.3,2631.9,3.2078]
[1739471522213,1.2389,2632.6,2632.1,0.75973]
[1739471522413,1.2389,2632.6,2632.0,1.2051]
[1739471522613,1.2389,2632.6,2632.2,3.2078]
[1739471522813,0.75966,2632.4,2632.3,1.1885]
[1739471523420,3.2078,2632.7,2632.3,1.1885]
[1739471523620,0.7596,2632.6,2632.3,1.94817]
[1739471523824,0.75965,2632.4,2632.3,1.1885]
[1739471524427,0.75965,2632.4,2632.1,0.00569768]
[1739471524428,0.75971,2632.2,2632.1,0.00569768]
[1739471524928,0.82501382,2632.2,2632.1,0.00569768]
[1739471526328,0.82501586,2632.2,2632.1,0.00569768]
[1739471526830,0.75971,2632.2,2632.1,0.00569768]
[1739471527433,0.82502003,2632.2,2632.1,0.00569768]
[1739471528325,0.82504683,2632.2,2632.1,0.00569768]
[1739471528828,6.06533683,2632.2,2631.3,3.2078]
[1739471529027,0.75992,2631.5,2631.3,3.2078]
[1739471529431,3.2078,2631.7,2631.3,3.2078]
[1739471529625,1.89935,2632.1,2631.3,3.2078]
[1739471529626,3.2078,2632.1,2631.3,3.2078]
[1739471529828,0.75985,2631.8,2631.4,0.75992]
[1739471530032,0.75991,2631.5,2631.4,0.00569768]
[1739471530426,3.96771,2631.5,2631.4,0.00569768]
[1739471530735,4.03304781,2631.5,2631.4,0.00569768]
[1739471531432,3.96771,2631.5,2631.4,0.00569768]
[1739471533147,3.2078,2631.5,2631.4,0.00569768]
[1739471533347,3.96771,2631.5,2631.4,0.00569768]
[1739471533538,3.2078,2631.5,2631.4,0.00569768]
[1739471534046,3.96771,2631.5,2631.4,0.00569768]
[1739471534245,3.2078,2631.5,2631.4,0.00569768]
[1739471534438,0.7598,2631.9,2631.6,0.75987]
[1739471534638,0.7598,2631.9,2631.7,2.4621]
[1739471534941,0.76548768,2632.0,2631.7,3.22195]
[1739471535140,0.00569768,2632.0,2631.7,2.4621]
[1739471535342,0.75981,2631.9,2631.7,2.4621]
[1739471535744,0.00569768,2632.0,2631.7,2.4621]
[1739471536346,0.7598,2631.9,2631.7,2.4621]
[1739471536645,0.00569768,2632.0,2631.7,2.4621]
[1739471536846,0.00569768,2632.0,2631.9,0.7598]
[1739471537943,4.4025,2632.8,2631.8,44.0078]
[1739471538145,0.06538681,2632.7,2632.1,3.2078]
[1739471538451,4.4025,2632.8,2632.4,0.75962]
[1739471538452,3.2078,2632.8,2632.4,0.75962]
[1739471538653,3.2078,2632.8,2632.5,1.2522]
[1739471538945,0.75959,2632.7,2632.5,4.46]
[1739471539138,3.2078,2633.1,2632.5,4.46]
[1739471539545,0.75954,2632.8,2632.5,5.21962]
[1739471539842,0.75959,2632.6,2632.5,4.46]
[1739471540445,3.2078,2633.1,2632.5,2.01181]
[1739471540644,5.10645,2633.1,2632.5,1.2522]
[1739471540843,0.0654044,2633.0,2632.5,1.2522]
[1739471541050,0.75959,2632.6,2632.5,1.2522]
[1739471541550,0.75965,2632.4,2632.3,1.23799768]
[1739471542539,0.75964,2632.5,2632.3,1.23799768]
[1739471542742,0.75965,2632.4,2632.3,1.23799768]
[1739471542943,0.75965,2632.4,2632.3,0.00569768]
[1739471543343,3.2078,2632.5,2632.3,0.00569768]
[1739471544152,3.2078,2633.1,2632.6,0.75958]
[1739471544347,3.2078,2633.1,2632.7,2.3454]
[1739471544659,5.41620783,2633.4,2632.8,1.2711]
[1739471544952,0.7595,2633.0,2632.8,1.2711]
[1739471545151,0.75948,2633.0,2632.8,1.2711]
[1739471545745,5.41620783,2633.4,2632.8,1.2711]
[1739471545946,0.06544642,2633.3,2632.8,1.2711]
[1739471546154,0.75951,2632.9,2632.8,1.2711]
[1739471546949,5.41620783,2633.4,2632.7,2.3454]
[1739471546950,3.2078,2633.1,2632.7,2.3454]
[1739471547156,0.75954,2632.8,2632.7,2.3454]
[1739471547358,0.75962,2632.5,2632.4,1.2306]
[1739471548054,0.75965,2632.4,2632.3,0.00569768]